bitfinex/quotes_ETHUSD_20230105
["timestamp","ask_amount","ask_price","bid_price","bid_amount"]
[1672919380905,16.01386,1253.3,1253.1,4.56615503]
[1672919381367,16.01386,1253.3,1253.1,8.13732043]
[1672919381590,16.01386,1253.3,1253.1,8.20332043]
[1672919381740,16.01386,1253.3,1253.1,4.63215503]
[1672919381950,16.01386,1253.3,1253.1,4.56615503]
[1672919386150,16.06386,1253.3,1253.1,4.56615503]
[1672919386400,16.01386,1253.3,1253.1,4.56615503]
[1672919388498,8.03493,1253.3,1253.1,4.56615503]
[1672919392412,8.03493,1253.3,1253.1,4.56224728]
[1672919392755,5.0,1253.2,1253.1,4.56224728]
[1672919392959,5.056,1253.2,1253.1,7.56224728]
[1672919393172,5.056,1253.2,1253.1,7.62824728]
[1672919394537,13.03557,1253.2,1253.1,3.60981708]
[1672919394725,13.03557,1253.2,1253.1,3.54381708]
[1672919396012,5.056,1253.2,1253.1,3.54381708]
[1672919396161,5.056,1253.2,1253.1,11.52401708]
[1672919396366,5.056,1253.2,1253.1,3.60981708]
[1672919396581,5.056,1253.2,1253.1,7.10630953]
[1672919396827,5.056,1253.2,1253.1,7.17230953]
[1672919397039,5.056,1253.2,1253.1,7.17030953]
[1672919397378,5.056,1253.2,1253.1,7.17230953]
[1672919397589,0.056,1253.2,1253.1,7.17230953]
[1672919397899,23.99362,1253.3,1253.1,7.17230953]
[1672919398115,23.99362,1253.3,1253.2,3.0]
[1672919398272,28.99362,1253.3,1253.2,3.0]
[1672919398489,0.05,1253.2,1253.1,3.60981708]
[1672919398716,29.22362,1253.3,1253.1,3.54381708]
[1672919401342,21.24417,1253.3,1253.1,3.54381708]
[1672919402939,13.26495,1253.3,1253.1,3.54381708]
[1672919407892,8.26495,1253.3,1253.1,3.54381708]
[1672919409262,16.2442,1253.3,1253.1,3.54381708]
[1672919414039,8.26495,1253.3,1253.1,3.54381708]
[1672919414249,16.2442,1253.3,1253.1,3.54381708]
[1672919416630,16.2442,1253.3,1253.1,3.54064848]
[1672919420219,24.22345,1253.3,1253.1,3.54064848]
[1672919427590,16.2442,1253.3,1253.1,3.54064848]
[1672919432741,16.8431,1253.3,1253.1,3.54064848]
[1672919435362,24.82235,1253.3,1253.1,3.54064848]
[1672919440330,24.82235,1253.3,1253.1,3.5380157]
[1672919441663,24.87235,1253.3,1253.1,3.5380157]
[1672919441861,24.82235,1253.3,1253.1,3.5380157]
[1672919456080,24.87235,1253.3,1253.1,3.5380157]
[1672919456230,24.82235,1253.3,1253.1,3.5380157]
[1672919461181,24.82235,1253.3,1253.1,3.53586364]
[1672919464593,0.8849,1253.3,1253.1,3.53586364]
[1672919464907,16.78676,1253.3,1253.1,3.53586364]
[1672919465125,16.84276,1253.3,1253.1,3.53586364]
[1672919465335,24.82201,1253.3,1253.1,3.53586364]
[1672919468329,24.87201,1253.3,1253.1,3.53586364]
[1672919468544,24.82201,1253.3,1253.1,3.53586364]
[1672919472480,0.05,1253.2,1253.1,3.53586364]
[1672919472821,24.82201,1253.3,1253.1,3.53586364]
[1672919486195,24.82201,1253.3,1253.1,3.53217512]
[1672919493541,16.18914,1253.2,1253.1,3.53217512]
[1672919493857,8.26557,1253.2,1253.1,3.53217512]
[1672919494167,16.24514,1253.2,1253.1,3.53217512]
[1672919496044,16.01514,1253.2,1253.1,3.53217512]
[1672919507348,8.03557,1253.2,1253.1,3.53217512]
[1672919507552,8.03557,1253.2,1253.1,3.52898141]
[1672919508223,0.056,1253.2,1253.1,3.52898141]
[1672919508559,7.97957,1253.2,1253.1,3.52898141]
[1672919508772,8.03557,1253.2,1253.1,3.52898141]
[1672919511770,0.056,1253.2,1253.1,3.52898141]
[1672919511968,24.59269,1253.3,1253.1,3.52898141]
[1672919517062,24.16871,1253.2,1253.1,3.52898141]
[1672919517272,24.22471,1253.2,1253.1,3.52898141]
[1672919524400,0.286,1253.2,1253.1,3.52898141]
[1672919524609,0.23,1253.2,1253.1,3.52898141]
[1672919525831,8.20957,1253.2,1253.1,3.52898141]
[1672919526017,8.26557,1253.2,1253.1,3.52898141]
[1672919526371,0.286,1253.2,1253.1,3.52898141]
[1672919526584,0.23,1253.2,1253.1,3.52898141]
[1672919529690,0.23,1253.2,1253.1,3.5259117]
[1672919530904,24.00373,1253.3,1253.1,19.82086441]
[1672919530905,0.066,1253.3,1253.1,19.82086441]
[1672919531060,9.70657645,1253.4,1253.2,6.4701654]
[1672919531223,9.70657645,1253.4,1253.3,3.0]
[1672919534222,9.70657645,1253.4,1253.3,10.97893]
[1672919534436,9.70657645,1253.4,1253.3,13.791293]
[1672919534615,9.70657645,1253.4,1253.3,29.749153]
[1672919535182,9.70657645,1253.4,1253.3,39.28399706]
[1672919535345,9.70657645,1253.4,1253.3,37.30332661]
[1672919537265,9.70657645,1253.4,1253.3,33.73830251]
[1672919537922,9.70657645,1253.4,1253.3,37.2992261]
[1672919538982,9.70657645,1253.4,1253.3,37.29852862]
[1672919539313,9.70657645,1253.4,1253.3,37.29851976]
[1672919540876,9.70657645,1253.4,1253.3,37.29887946]
[1672919541252,9.70657645,1253.4,1253.3,33.73830251]
[1672919541994,9.70657645,1253.4,1253.3,37.29853074]
[1672919542199,9.70657645,1253.4,1253.3,33.73830251]
[1672919542637,9.70657645,1253.4,1253.3,37.29853075]
[1672919542841,9.70657645,1253.4,1253.3,37.29853178]
[1672919543252,9.70657645,1253.4,1253.3,33.73830251]
[1672919543713,9.70657645,1253.4,1253.3,37.29818809]
[1672919543918,9.70657645,1253.4,1253.3,33.73830251]
[1672919546721,9.70657645,1253.4,1253.3,37.29751239]
[1672919546931,9.70657645,1253.4,1253.3,33.73830251]
[1672919549461,9.70657645,1253.4,1253.3,37.29749153]
[1672919549690,9.70657645,1253.4,1253.3,33.73830251]
[1672919554032,1.02906714,1253.9,1253.4,23.38981054]
[1672919554248,0.84258,1254.1,1253.8,14.0]
[1672919554435,0.7261753,1254.5,1254.3,7.97257]
[1672919554643,0.7681753,1254.5,1254.4,8.97684951]
[1672919554856,0.7561753,1254.5,1254.4,11.03793]
[1672919555041,3.0391753,1254.5,1254.4,3.066]
[1672919555252,3.34309283,1254.5,1254.3,3.066]
[1672919555568,0.7261753,1254.5,1254.4,2.0031]
[1672919555798,0.7261753,1254.5,1254.4,5.0031]
[1672919556027,0.7261753,1254.5,1254.4,21.01296]
[1672919557815,0.7261753,1254.5,1254.4,20.73393168]
[1672919558976,0.7261753,1254.5,1254.4,0.54455925]
[1672919558977,1.5641753,1254.5,1254.4,0.54455925]
[1672919559191,2.51766883,1254.5,1254.2,0.32833739]
[1672919559339,18.46026883,1254.5,1254.2,0.32833739]
[1672919559558,0.5984,1254.4,1254.2,0.32833739]
[1672919560090,4.0984,1254.4,1254.2,0.32833739]
[1672919560435,5.47993688,1254.4,1254.0,8.04047]
[1672919560765,4.1544,1254.4,1254.0,16.01451]
[1672919560955,4.0984,1254.4,1254.0,8.04004]
[1672919561296,12.07038,1254.4,1254.0,0.066]
[1672919561464,12.07038,1254.4,1253.9,26.38186]
[1672919561465,12.12638,1254.4,1253.9,34.42262]
[1672919561680,12.12638,1254.4,1253.9,26.43562371]
[1672919561681,23.42426888,1254.4,1253.9,26.43562371]
[1672919561889,23.42426888,1254.4,1253.9,18.46146]
[1672919561890,0.23,1254.3,1253.9,18.46146]
[1672919562219,3.5,1254.2,1253.9,18.46146]
[1672919562428,3.5,1254.2,1253.9,16.30767]
[1672919563080,8.26869,1254.3,1253.9,16.30767]
[1672919563296,8.25866,1254.3,1254.0,10.97442]
[1672919563442,10.18958316,1254.3,1254.0,3.066]
[1672919563647,10.18958316,1254.3,1254.0,3.0]
[1672919563927,10.18958316,1254.3,1254.0,10.97447]
[1672919564082,10.18958316,1254.3,1254.0,11.04047]
[1672919564500,18.16224316,1254.3,1254.0,3.066]
[1672919564744,18.16224316,1254.3,1254.0,10.97447]
[1672919564971,2.21692316,1254.3,1254.0,26.98943]
[1672919565185,2.16092316,1254.3,1254.0,3.066]
[1672919565373,3.5,1254.2,1254.0,3.0]
[1672919565777,7.9733,1254.2,1254.0,3.0]
[1672919565969,8.0293,1254.2,1254.0,3.0]
[1672919566189,0.056,1254.2,1254.0,3.0]
[1672919566383,7.97341,1254.2,1254.0,3.0]
[1672919566594,1.00949353,1254.2,1254.0,10.97448]
[1672919566872,10.13351316,1254.3,1254.0,19.22126]
[1672919567039,10.18951316,1254.3,1254.0,19.01496]
[1672919567245,18.16210316,1254.3,1254.0,11.04048]
[1672919569010,0.05,1254.2,1254.0,11.04048]
[1672919569225,10.18951316,1254.3,1254.0,11.04048]
[1672919569963,2.21692316,1254.3,1254.0,19.01496]
[1672919570167,2.16092316,1254.3,1254.0,19.01496]
[1672919570657,10.13356316,1254.3,1254.0,19.01496]
[1672919570831,10.18956316,1254.3,1254.0,11.04048]
[1672919571045,16.9744052,1254.3,1254.0,11.04048]
[1672919571253,9.0017652,1254.3,1254.0,19.01496]
[1672919572015,1.0291252,1254.3,1254.0,26.98944]
[1672919572226,0.9731252,1254.3,1254.0,19.01496]
[1672919573911,8.9457452,1254.3,1254.0,19.01496]
[1672919574080,9.0017452,1254.3,1254.0,19.01496]
[1672919576167,0.056,1254.3,1254.0,26.98944]
[1672919576409,35.18669,1254.4,1254.0,19.01496]
[1672919576742,27.21421,1254.4,1254.0,26.98944]
[1672919577163,35.18669,1254.4,1254.0,19.01496]
[1672919577516,3.5,1254.3,1254.0,19.01496]
[1672919577846,7.97269,1254.3,1254.0,19.01496]
[1672919578006,8.02869,1254.3,1254.0,19.01496]
[1672919578222,0.056,1254.3,1254.0,26.98944]
[1672919578533,27.21431,1254.4,1254.0,30.25618898]
[1672919578735,27.21431,1254.4,1254.0,26.98944]
[1672919578990,35.18662,1254.4,1254.0,11.04048]
[1672919579147,35.18662,1254.4,1254.0,19.01496]
[1672919579354,35.18662,1254.4,1254.0,26.98944]
[1672919579771,27.21431,1254.4,1254.0,26.98944]
[1672919579981,35.18662,1254.4,1254.0,19.01496]
[1672919580192,24.32414,1254.4,1254.0,26.98944]
[1672919580737,32.29628,1254.4,1254.0,19.01496]
[1672919581803,11.47278,1254.3,1254.0,19.01496]
[1672919581998,11.52878,1254.3,1254.0,19.01496]
[1672919582203,8.02878,1254.3,1254.0,20.04310811]
[1672919582610,0.056,1254.3,1254.0,28.01758811]
[1672919582822,8.38,1254.4,1254.3,0.056]
[1672919583034,10.67319167,1254.4,1254.3,0.056]
[1672919583248,2.34919167,1254.4,1254.3,0.056]
[1672919583461,10.26512167,1254.4,1254.3,0.056]
[1672919583718,2.34919167,1254.4,1254.3,0.056]
[1672919583946,2.29319167,1254.4,1254.3,0.056]
[1672919584772,35.63271671,1254.5,1254.3,0.056]
[1672919584773,11.71791671,1254.5,1254.3,0.056]
[1672919584919,0.7821753,1254.5,1254.3,31.64125661]
[1672919585136,0.7261753,1254.5,1254.4,3.0]
[1672919585445,0.066,1254.8,1254.4,46.36676227]
[1672919585659,8.26584311,1254.9,1254.5,11.15968453]
[1672919585928,12.31099262,1254.9,1254.6,3.0]
[1672919586145,5.0,1254.7,1254.5,0.15909]
[1672919586296,0.056,1254.7,1254.5,0.09309]
[1672919586507,0.056,1254.8,1254.5,4.08223951]
[1672919586716,17.97281311,1254.9,1254.6,3.0]
[1672919586954,0.95091311,1254.9,1254.6,8.49449846]
[1672919587166,0.29681311,1254.9,1254.6,4.57134895]
[1672919587378,0.29681311,1254.9,1254.6,3.0]
[1672919587626,8.26579311,1254.9,1254.6,3.0]
[1672919587804,16.29077311,1254.9,1254.6,3.0]
[1672919587992,8.32179311,1254.9,1254.6,3.0]
[1672919588653,16.29055311,1254.9,1254.6,3.0]
[1672919588883,19.15492925,1254.9,1254.6,3.0]
[1672919589396,27.12368925,1254.9,1254.6,3.0]
[1672919589562,27.17368925,1254.9,1254.6,3.0]
[1672919589775,3.5,1254.8,1254.6,3.0]
[1672919589984,15.94006,1254.7,1254.6,3.0]
[1672919590339,23.96609,1254.7,1254.6,3.0]
[1672919592367,26.30402147,1254.7,1254.6,3.0]
[1672919592589,26.30402147,1254.7,1254.5,3.066]
[1672919592728,0.056,1254.7,1254.5,18.94191]
[1672919592935,10.5102,1254.8,1254.5,26.97887]
[1672919593204,18.47963,1254.8,1254.5,11.03695]
[1672919593360,34.41937,1254.8,1254.5,3.066]
[1672919593569,0.30681311,1254.9,1254.6,18.56610876]
[1672919593778,0.27902832,1255.0,1254.8,14.0]
[1672919594030,2.832e-05,1255.0,1254.9,53.95010994]
[1672919594244,0.0098,1255.3,1255.1,24.33798]
[1672919594422,0.0098,1255.3,1255.2,21.58714951]
[1672919594639,0.0098,1255.3,1255.2,23.58684951]
[1672919594845,0.0098,1255.3,1255.2,23.58484951]
[1672919594846,0.30113219,1255.3,1255.2,23.58484951]
[1672919595101,0.30113219,1255.3,1255.2,17.664]
[1672919595313,0.30113219,1255.3,1255.2,3.664]
[1672919595464,0.30265798,1255.5,1255.2,23.10835411]
[1672919595681,0.30265798,1255.5,1255.3,3.98914951]
[1672919595887,0.30265798,1255.5,1255.3,7.13664951]
[1672919596132,0.30265798,1255.5,1255.4,1.5925]
[1672919596319,0.30265798,1255.5,1255.4,3.0]
[1672919596666,0.30265798,1255.5,1255.3,3.2173]
[1672919596888,0.30265798,1255.5,1255.3,5.02515046]
[1672919597037,0.30265798,1255.5,1255.3,13.05737046]
[1672919597235,7.96558,1255.4,1255.3,5.09115046]
[1672919597454,8.02158,1255.4,1255.3,3.2173]
[1672919597714,0.056,1255.4,1255.3,3.1513]
[1672919597867,0.056,1255.4,1255.3,0.15755895]
[1672919597868,18.21416,1255.4,1255.3,0.15755895]
[1672919598089,3.5,1255.3,1255.0,0.066]
[1672919598314,0.598,1255.2,1254.8,30.356]
[1672919598559,15.88522,1255.1,1254.8,0.066]
[1672919598752,15.93752,1254.9,1254.5,30.356]
[1672919598961,8.02476,1254.9,1254.5,14.066]
[1672919599185,8.02476,1254.9,1254.5,0.066]
[1672919599186,15.99352,1254.9,1254.5,0.066]
[1672919599368,15.99352,1254.9,1254.4,9.5839]
[1672919599369,7.97003,1254.7,1254.4,9.6499]
[1672919599707,8.02603,1254.7,1254.4,4.20867]
[1672919600046,8.02642,1254.7,1254.3,10.122]
[1672919600353,8.02642,1254.7,1254.3,0.122]
[1672919600354,15.9426,1254.5,1254.3,0.122]
[1672919600535,18.82526,1254.4,1254.3,0.056]
[1672919600744,18.88126,1254.4,1254.3,0.056]
[1672919600959,10.90933,1254.4,1254.3,0.056]
[1672919601291,18.88126,1254.4,1254.3,0.056]
[1672919601434,10.90933,1254.4,1254.3,0.056]
[1672919602100,10.90933,1254.4,1254.3,0.06333284]
[1672919602335,20.89198761,1254.4,1254.3,0.06333284]
[1672919603571,20.89198761,1254.4,1253.9,0.00742528]
[1672919603572,36.64330176,1254.4,1253.9,0.00742528]
[1672919603745,31.89332,1254.2,1253.9,0.00742528]
[1672919603957,0.5985,1254.1,1253.9,0.00742528]
[1672919604210,23.92344,1254.0,1253.9,0.00742528]
[1672919604418,21.8654884,1254.0,1253.9,0.00742528]
[1672919604819,5.9165284,1254.0,1253.9,0.00742528]
[1672919605027,0.054,1254.0,1253.9,0.00742528]
[1672919605238,0.5485,1254.1,1253.9,0.00742528]
[1672919605480,8.52254,1254.1,1253.9,0.00742528]
[1672919605625,0.6025,1254.1,1253.9,0.00742528]
[1672919605840,0.5485,1254.1,1254.0,0.00674647]
[1672919606298,0.5485,1254.1,1254.0,7.98122647]
[1672919606551,0.5485,1254.1,1254.0,4.66909665]
[1672919606763,0.5985,1254.2,1254.0,4.60309665]
[1672919607306,0.5985,1254.2,1254.0,0.00674647]
[1672919607307,3.5,1254.1,1254.0,0.00674647]
[1672919607537,8.63799,1254.2,1254.0,0.00674647]
[1672919607672,3.5,1254.1,1254.0,0.00674647]
[1672919607880,0.6645,1254.2,1254.0,0.00674647]
[1672919608211,0.5985,1254.2,1254.0,23.93018647]
[1672919608541,0.5985,1254.2,1254.0,27.49403164]
[1672919608758,0.5984,1254.3,1254.0,27.49403164]
[1672919609183,0.5984,1254.4,1254.1,3.0]
[1672919609513,0.5984,1254.4,1254.2,7.97321]
[1672919609839,0.5984,1254.4,1254.2,8.03921]
[1672919609989,0.5984,1254.4,1254.2,8.04553259]
[1672919610875,0.5984,1254.4,1254.2,23.99195259]
[1672919611101,20.42141,1254.6,1254.2,11.54207285]
[1672919611102,0.5983,1254.5,1254.2,11.54207285]
[1672919611241,0.5983,1254.5,1254.2,27.48849285]
[1672919611446,0.5983,1254.5,1254.3,3.0]
[1672919611764,4.0983,1254.6,1254.3,10.97254]
[1672919611981,12.06897,1254.6,1254.3,14.08732229]
[1672919612220,12.12497,1254.6,1254.3,6.11478229]
[1672919612429,12.07497,1254.6,1254.3,6.11478229]
[1672919613294,0.6043,1254.6,1254.3,14.08735229]
[1672919613461,0.5483,1254.6,1254.3,22.05992229]
[1672919613883,0.5483,1254.6,1254.4,0.00589884]
[1672919614125,0.5483,1254.6,1254.4,7.97750884]
[1672919614333,0.5483,1254.6,1254.4,10.24999495]
[1672919614719,0.5483,1254.6,1254.4,18.22192495]
[1672919614927,0.5483,1254.6,1254.4,10.24999495]
[1672919615176,20.0386,1254.7,1254.4,2.27838495]
[1672919615412,20.0946,1254.7,1254.4,2.21238495]
[1672919616206,8.62431,1254.7,1254.4,10.18423495]
[1672919616415,8.62431,1254.7,1254.4,2.27838495]
[1672919616681,8.62431,1254.7,1254.4,2.21238495]
[1672919616847,8.62431,1254.7,1254.4,10.18417495]
[1672919617036,8.62431,1254.7,1254.4,10.25017495]
[1672919618001,8.62431,1254.7,1254.4,2.27838495]
[1672919618204,28.14465874,1254.7,1254.4,0.00589884]
[1672919618438,31.8852,1254.5,1254.4,0.00589884]
[1672919618616,36.52864951,1254.5,1254.4,0.00589884]
[1672919618980,36.75864951,1254.5,1254.4,0.00589884]
[1672919619136,38.43140838,1254.5,1254.4,0.00589884]
[1672919619890,38.43140838,1254.5,1254.0,33.59]
[1672919620113,3.5,1254.4,1254.0,33.59]
[1672919620343,15.94514,1254.3,1254.1,3.0]
[1672919620533,16.00114,1254.3,1254.1,3.0]
[1672919620747,23.97371,1254.3,1254.1,6.3356]
[1672919620919,23.97371,1254.3,1254.1,6.40813451]
[1672919621353,23.97371,1254.3,1254.1,3.07253451]
[1672919621663,23.97371,1254.3,1254.1,3.00653451]
[1672919622465,24.02371,1254.3,1254.1,3.00653451]
[1672919622790,23.97371,1254.3,1254.1,3.00653451]
[1672919631257,27.96285951,1254.3,1254.1,3.00653451]
[1672919631513,27.41963,1254.2,1254.1,3.00653451]
[1672919631699,27.47563,1254.2,1254.1,0.00653451]
[1672919632331,0.056,1254.2,1254.1,1.45153451]
[1672919632575,12.2522,1254.5,1254.1,28.37305451]
[1672919632786,3.556,1254.5,1254.2,1.501]
[1672919633103,12.0699,1254.5,1254.2,4.501]
[1672919633251,20.0975,1254.5,1254.2,4.501]
[1672919633457,24.5691,1254.5,1254.2,4.501]
[1672919633904,24.5691,1254.5,1254.3,0.0061107]
[1672919634115,0.6543,1254.5,1254.3,0.0061107]
[1672919634341,0.5983,1254.5,1254.3,0.0061107]
[1672919634529,0.5983,1254.5,1254.3,15.9506307]
[1672919634887,0.5983,1254.5,1254.3,0.0721107]
[1672919635095,0.5983,1254.5,1254.3,0.0061107]
[1672919635283,8.56966,1254.5,1254.3,0.0061107]
[1672919635620,3.5,1254.4,1254.3,0.0061107]
[1672919635936,11.47193,1254.4,1254.3,0.00527572]
[1672919636181,0.056,1254.4,1254.3,0.00527572]
[1672919636297,8.62566,1254.5,1254.3,0.00527572]
[1672919636503,8.02736,1254.5,1254.3,1.45027572]
[1672919636786,8.02736,1254.5,1254.3,22.62674822]
[1672919636787,0.056,1254.5,1254.3,22.62674822]
[1672919636937,0.056,1254.5,1254.3,6.74808822]
[1672919636938,23.91474,1254.5,1254.3,6.74808822]
[1672919637142,8.0273,1254.5,1254.3,4.51627572]
[1672919637374,8.0273,1254.5,1254.3,4.45027572]
[1672919637628,0.056,1254.5,1254.3,12.42278572]
[1672919637807,23.96921,1254.6,1254.3,12.48878572]
[1672919638023,23.96921,1254.6,1254.3,4.51627572]
[1672919638357,23.96921,1254.6,1254.3,7.47930422]
[1672919638508,23.96921,1254.6,1254.3,15.51783422]
[1672919638716,15.99792,1254.6,1254.3,15.51783422]
[1672919638925,8.02681,1254.6,1254.3,23.49040422]
[1672919639156,8.02681,1254.6,1254.3,31.46297422]
[1672919639345,8.02681,1254.6,1254.3,23.49040422]
[1672919639676,15.99775,1254.6,1254.3,23.49040422]
[1672919640012,15.99775,1254.6,1254.3,15.51783422]
[1672919640226,8.02666,1254.6,1254.3,23.49040422]
[1672919640460,0.056,1254.6,1254.3,23.49040422]
[1672919640678,15.94166,1254.6,1254.3,15.51783422]
[1672919640839,0.056,1254.6,1254.3,31.46297422]
[1672919641045,7.97074,1254.6,1254.3,23.49040422]
[1672919641313,8.02674,1254.6,1254.3,23.49040422]
[1672919641505,0.056,1254.6,1254.3,31.46297422]
[1672919641716,0.056,1254.7,1254.3,39.50000483]
[1672919641920,18.7042,1254.8,1254.3,39.50000483]
[1672919642469,25.3752,1254.8,1254.5,15.94247]
[1672919642658,9.436,1254.8,1254.5,26.571166]
[1672919643079,9.436,1254.8,1254.6,3.0]
[1672919643292,9.436,1254.8,1254.6,10.97059]
[1672919643512,17.4054,1254.8,1254.6,3.066]
[1672919643672,17.4054,1254.8,1254.6,3.0]
[1672919643885,25.3748,1254.8,1254.7,0.00464035]
[1672919644354,33.3442,1254.8,1254.7,0.00464035]
[1672919646362,33.5742,1254.8,1254.7,0.00464035]
[1672919646828,33.5742,1254.8,1254.4,6.205]
[1672919647046,33.5742,1254.8,1254.4,6.271]
[1672919647047,33.6242,1254.8,1254.4,6.271]
[1672919647603,9.716,1254.8,1254.4,30.18661]
[1672919647788,9.486,1254.8,1254.4,38.16077371]
[1672919648001,9.486,1254.8,1254.5,0.00506389]
[1672919648355,9.486,1254.8,1254.5,15.94681389]
[1672919648356,25.42519,1254.8,1254.5,15.94681389]
[1672919648531,33.39494,1254.8,1254.6,3.0]
[1672919648879,33.39106088,1254.8,1254.6,3.0]
[1672919649040,33.39106088,1254.8,1254.5,11.04213389]
[1672919649247,33.34106088,1254.8,1254.5,7.36418765]
[1672919649460,25.37131088,1254.8,1254.5,15.33537765]
[1672919649703,33.34075088,1254.8,1254.5,7.36418765]
[1672919650712,33.34075088,1254.8,1254.5,3.07106389]
[1672919650920,33.34075088,1254.8,1254.5,3.00506389]
[1672919651399,25.42100088,1254.8,1254.5,3.00506389]
[1672919651604,33.39044088,1254.8,1254.5,3.00506389]
[1672919653353,33.34044088,1254.8,1254.5,3.00506389]
[1672919653568,33.34044088,1254.8,1254.5,12.87802965]
[1672919653569,25.37100088,1254.8,1254.5,12.87802965]
[1672919653828,25.37100088,1254.8,1254.5,12.94402965]
[1672919654187,25.37100088,1254.8,1254.5,20.91532965]
[1672919654928,17.40156088,1254.8,1254.5,20.91532965]
[1672919655407,9.43212088,1254.8,1254.5,28.88953175]
[1672919655640,9.43212088,1254.8,1254.6,7.97066]
[1672919655849,9.43212088,1254.8,1254.6,10.92548317]
[1672919656094,9.43212088,1254.8,1254.6,26.87165528]
[1672919656206,9.43212088,1254.8,1254.7,7.97003]
[1672919656424,9.43212088,1254.8,1254.7,8.03603]
[1672919658315,9.43212088,1254.8,1254.7,0.066]
[1672919658521,9.43212088,1254.8,1254.6,26.87080528]
[1672919659005,9.43212088,1254.8,1254.6,26.87131528]
[1672919660743,0.056,1254.8,1254.6,26.87131528]
[1672919661100,9.31290486,1254.9,1254.6,26.87131528]
[1672919661463,9.26290486,1254.9,1254.6,26.87131528]
[1672919661937,0.36370486,1254.9,1254.6,34.41842201]
[1672919662099,0.36370486,1254.9,1254.8,7.96939]
[1672919662100,0.30770486,1254.9,1254.8,7.96939]
[1672919662317,0.30770486,1254.9,1254.8,1.959889]
[1672919662520,0.30770486,1254.9,1254.8,9.863279]
[1672919662774,0.30770486,1254.9,1254.8,4.959889]
[1672919663006,0.30770486,1254.9,1254.8,4.89831763]
[1672919663789,0.30770486,1254.9,1254.8,12.86770763]
[1672919664155,0.30770486,1254.9,1254.8,4.96431763]
[1672919664358,0.30770486,1254.9,1254.8,1.44942863]
[1672919664511,8.27646486,1254.9,1254.8,1.44942863]
[1672919664722,24.26998486,1254.9,1254.8,1.44942863]
[1672919664974,16.30122486,1254.9,1254.8,0.00442863]
[1672919665137,0.36370486,1254.9,1254.8,0.00442863]
[1672919665353,0.30770486,1254.9,1254.8,0.00442863]
[1672919667035,16.24522486,1254.9,1254.8,0.00442863]
[1672919667237,16.30122486,1254.9,1254.8,0.00442863]
[1672919667453,26.72871383,1254.9,1254.8,0.00442863]
[1672919667930,30.94786334,1254.9,1254.8,0.00442863]
[1672919668086,31.54596334,1254.9,1254.8,0.00442863]
[1672919668664,24.26998486,1254.9,1254.8,0.00442863]
[1672919668877,0.36370486,1254.9,1254.7,7.96946]
[1672919669191,0.30770486,1254.9,1254.7,0.066]
[1672919669412,16.24536486,1254.9,1254.5,13.255]
[1672919669549,16.30136486,1254.9,1254.5,30.52757551]
[1672919669907,16.30136486,1254.9,1254.8,0.00442863]
[1672919670791,24.27026486,1254.9,1254.8,0.00442863]
[1672919670981,24.27026486,1254.9,1254.6,6.257]
[1672919671181,24.27026486,1254.9,1254.6,8.81282955]
[1672919671397,24.27026486,1254.9,1254.6,8.80959968]
[1672919671930,24.27026486,1254.9,1254.7,0.00464035]
[1672919672178,3.5,1254.8,1254.7,0.00464035]
[1672919672354,19.43878,1254.8,1254.7,0.00464035]
[1672919672569,19.49478,1254.8,1254.7,0.00464035]
[1672919673652,0.056,1254.8,1254.7,43.82743911]
[1672919673803,0.30770486,1254.9,1254.7,55.7749823]
[1672919674016,0.30770486,1254.9,1254.8,3.98914951]
[1672919674321,0.30770486,1254.9,1254.8,22.92792951]
[1672919674493,0.30770486,1254.9,1254.8,28.84745542]
[1672919674708,0.30770486,1254.9,1254.8,36.81684542]
[1672919674919,0.30770486,1254.9,1254.8,36.82127405]
[1672919676488,0.30770486,1254.9,1254.8,8.92395454]
[1672919676681,16.24522486,1254.9,1254.8,8.92395454]
[1672919676890,24.21798486,1254.9,1254.8,3.07042863]
[1672919677227,24.21798486,1254.9,1254.8,3.00442863]
[1672919677754,16.24922486,1254.9,1254.8,3.00442863]
[1672919678237,8.28046486,1254.9,1254.8,3.00442863]
[1672919678446,0.31170486,1254.9,1254.8,13.21111224]
[1672919678657,0.30770486,1254.9,1254.8,13.27711224]
[1672919679072,0.30770486,1254.9,1254.8,5.30772224]
[1672919680026,0.30770486,1254.9,1254.8,13.27711224]
[1672919680691,0.30770486,1254.9,1254.8,5.30772224]
[1672919681809,0.30770486,1254.9,1254.8,45.18707749]
[1672919682047,0.30770486,1254.9,1254.8,17.744821]
[1672919682887,0.30770486,1254.9,1254.8,25.714211]
[1672919684419,0.30770486,1254.9,1254.8,33.683601]
[1672919690350,0.30770486,1254.9,1254.8,9.775431]
[1672919691182,0.30770486,1254.9,1254.8,5.78628149]
[1672919691395,0.30770486,1254.9,1254.8,13.75567149]
[1672919692042,0.30770486,1254.9,1254.8,5.78628149]
[1672919692256,0.30770486,1254.9,1254.8,21.72506149]
[1672919692470,0.30770486,1254.9,1254.8,13.75567149]
[1672919692674,0.30770486,1254.9,1254.8,5.78628149]
[1672919694498,0.30770486,1254.9,1254.8,13.75567149]
[1672919694708,0.30770486,1254.9,1254.8,5.78628149]
[1672919694860,0.30770486,1254.9,1254.8,29.69445149]
[1672919695211,0.30770486,1254.9,1254.8,29.69002286]
[1672919695608,0.30770486,1254.9,1254.8,29.68626161]
[1672919697484,0.30770486,1254.9,1254.8,33.67541112]
[1672919697750,0.30770486,1255.0,1254.9,3.80770486]
[1672919697969,0.30770486,1255.0,1254.9,53.35031032]
[1672919698124,0.30770486,1255.0,1254.9,61.89486957]
[1672919698540,0.30770486,1255.0,1254.9,45.95734957]
[1672919698798,0.30770486,1255.0,1254.9,34.45734957]
[1672919698968,0.30770486,1255.0,1254.9,34.81089182]
[1672919699393,0.30770486,1255.0,1254.9,26.84213182]
[1672919699759,16.24394486,1255.0,1254.9,22.37442306]
[1672919699901,16.24794486,1255.0,1254.9,14.72724711]
[1672919700345,8.27982486,1255.0,1254.9,14.72724711]
[1672919700555,16.24794486,1255.0,1254.9,14.72724711]
[1672919700828,8.27982486,1255.0,1254.9,14.72724711]
[1672919701650,0.31170486,1255.0,1254.9,14.72724711]
[1672919701806,8.27582486,1255.0,1254.9,17.72724711]